bitfinex/quotes_BTCUSD_20250224
["timestamp","ask_amount","ask_price","bid_price","bid_amount"]
[1740430549156,0.0051711,94381.0,94380.0,0.0008496]
[1740430549372,0.0071711,94381.0,94380.0,0.0008496]
[1740430550193,0.0071711,94381.0,94380.0,0.1597806]
[1740430550397,0.0046992,94381.0,94380.0,0.1597806]
[1740430550547,0.0046992,94381.0,94380.0,0.0008496]
[1740430551240,0.00717124,94381.0,94380.0,0.0008496]
[1740430552278,0.0046992,94381.0,94380.0,0.0008496]
[1740430552619,0.00717124,94381.0,94380.0,0.0008496]
[1740430552979,0.0046992,94381.0,94380.0,0.1597806]
[1740430553195,0.0046992,94381.0,94380.0,0.0008496]
[1740430553594,0.0046992,94381.0,94380.0,0.1597806]
[1740430554008,0.0046992,94381.0,94380.0,0.0008496]
[1740430554439,0.0046992,94381.0,94380.0,0.1597806]
[1740430554666,0.0046992,94381.0,94380.0,0.26390961]
[1740430554873,0.0046992,94381.0,94380.0,0.26242629]
[1740430555700,0.0036992,94381.0,94380.0,0.26242629]
[1740430555901,0.0016992,94381.0,94380.0,0.26442629]
[1740430556311,0.0016992,94381.0,94380.0,0.58682629]
[1740430556312,0.0036992,94381.0,94380.0,0.58682629]
[1740430556727,0.0016992,94381.0,94380.0,0.58682629]
[1740430557125,0.0016992,94381.0,94380.0,0.58882629]
[1740430561082,0.0016992,94381.0,94380.0,1.20912629]
[1740430563261,0.0016992,94381.0,94380.0,1.35912629]
[1740430563664,0.0016992,94381.0,94380.0,1.40762629]
[1740430564074,0.0016992,94381.0,94380.0,1.44216714]
[1740430564663,0.0016992,94381.0,94380.0,1.44016714]
[1740430565068,0.0026992,94381.0,94380.0,1.44216714]
[1740430565499,0.0026992,94381.0,94380.0,1.42016714]
[1740430565650,0.0036992,94381.0,94380.0,1.41262629]
[1740430566996,0.0036992,94381.0,94380.0,1.10369529]
[1740430567169,0.0036992,94381.0,94380.0,1.02089529]
[1740430567370,0.0036992,94381.0,94380.0,0.3322496]
[1740430567371,0.1626292,94381.0,94380.0,0.3322496]
[1740430567578,0.16489937,94381.0,94380.0,0.3322496]
[1740430567773,0.00596937,94381.0,94380.0,0.3322496]
[1740430568179,0.00496937,94381.0,94380.0,0.3302496]
[1740430568747,0.0026992,94381.0,94380.0,0.3322496]
[1740430568951,0.0026992,94381.0,94380.0,0.3302496]
[1740430569152,0.0016992,94381.0,94380.0,0.3232496]
[1740430569330,0.0026992,94381.0,94380.0,0.3292496]
[1740430569801,0.0016992,94381.0,94380.0,0.3232496]
[1740430570921,0.1606292,94381.0,94380.0,0.3232496]
[1740430571129,0.16290275,94381.0,94380.0,0.3232496]
[1740430571328,0.16290275,94381.0,94380.0,0.0008496]
[1740430572075,0.00397275,94381.0,94380.0,0.0008496]
[1740430572277,0.16290275,94381.0,94380.0,0.0008496]
[1740430572474,0.00697275,94381.0,94380.0,0.0008496]
[1740430572653,0.00997275,94381.0,94380.0,0.0008496]
[1740430572971,0.16890275,94381.0,94380.0,0.0008496]
[1740430580425,0.17866275,94381.0,94380.0,0.0008496]
[1740430581330,0.01973275,94381.0,94380.0,0.0008496]
[1740430581510,0.17866275,94381.0,94380.0,0.0008496]
[1740430581662,0.17666275,94381.0,94380.0,0.0008496]
[1740430585978,0.00797275,94381.0,94380.0,0.0008496]
[1740430586979,0.00197275,94381.0,94380.0,0.0008496]
[1740430587189,0.003,94381.0,94380.0,0.0008496]
[1740430587380,0.00521746,94381.0,94380.0,0.0008496]
[1740430587604,0.00221746,94381.0,94380.0,0.0008496]
[1740430587926,0.003,94381.0,94380.0,0.0008496]
[1740430588084,0.00521663,94381.0,94380.0,0.0008496]
[1740430588284,0.00821663,94381.0,94380.0,0.0008496]
[1740430588593,0.01121663,94381.0,94380.0,0.0008496]
[1740430588793,0.00821663,94381.0,94380.0,0.0008496]
[1740430588990,0.01121663,94381.0,94380.0,0.0008496]
[1740430589644,0.00821663,94381.0,94380.0,0.0008496]
[1740430589811,0.01121663,94381.0,94380.0,0.0008496]
[1740430590020,0.00521663,94381.0,94380.0,0.0008496]
[1740430590225,0.00821663,94381.0,94380.0,0.0008496]
[1740430590449,0.00521663,94381.0,94380.0,0.0008496]
[1740430590883,0.00821663,94381.0,94380.0,0.0008496]
[1740430591344,0.00521663,94381.0,94380.0,0.0008496]
[1740430591557,0.00221663,94381.0,94380.0,0.0008496]
[1740430591793,0.00521663,94381.0,94380.0,0.0008496]
[1740430591918,0.006,94381.0,94380.0,0.0008496]
[1740430592116,0.00513185,94381.0,94380.0,0.0008496]
[1740430592356,0.00813185,94381.0,94380.0,0.0008496]
[1740430592781,0.00513185,94381.0,94380.0,0.0008496]
[1740430593438,0.00813185,94381.0,94380.0,0.0008496]
[1740430594111,0.01113185,94381.0,94380.0,0.0008496]
[1740430594328,0.00513185,94381.0,94380.0,0.42589529]
[1740430594667,0.006,94381.0,94380.0,0.50599529]
[1740430595087,0.003,94381.0,94380.0,0.50599529]
[1740430595299,0.006,94381.0,94380.0,0.50599529]
[1740430595506,0.003,94381.0,94380.0,0.50599529]
[1740430595711,0.0016992,94383.0,94380.0,0.50599529]
[1740430595916,0.0016992,94383.0,94381.0,0.10264569]
[1740430596925,0.0016992,94383.0,94381.0,0.09964569]
[1740430597320,0.0016992,94383.0,94381.0,0.10164569]
[1740430598398,0.0016992,94383.0,94381.0,0.10464569]
[1740430598818,0.0016992,94383.0,94381.0,0.005]
[1740430598987,0.1610473,94382.0,94381.0,0.005]
[1740430599678,0.1610473,94382.0,94381.0,0.002]
[1740430599911,0.15893,94381.0,94380.0,0.0008496]
[1740430600339,0.16105761,94381.0,94380.0,0.0008496]
[1740430601301,0.16205761,94381.0,94380.0,0.0008496]
[1740430602195,0.00204869,94381.0,94380.0,0.0008496]
[1740430602331,0.003,94381.0,94380.0,0.0008496]
[1740430602537,0.00504869,94381.0,94380.0,0.0008496]
[1740430602945,0.16397869,94381.0,94380.0,0.0008496]
[1740430603782,0.16597869,94381.0,94380.0,0.0008496]
[1740430604264,0.16597869,94381.0,94359.0,0.0008501]
[1740430604265,0.158958,94364.0,94359.0,0.0008501]
[1740430604710,0.16100328,94364.0,94359.0,0.0008501]
[1740430605882,0.16500328,94364.0,94359.0,0.0008501]
[1740430606383,0.16100328,94364.0,94359.0,0.0008501]
[1740430606741,0.16300328,94364.0,94359.0,0.0008501]
[1740430606961,0.16600328,94364.0,94359.0,0.0008501]
[1740430607146,0.16300328,94364.0,94359.0,0.0008501]
[1740430607556,0.16500328,94364.0,94359.0,0.0008501]
[1740430623904,0.158979,94352.0,94346.0,0.0762]
[1740430624123,0.158979,94352.0,94344.0,0.0464]
[1740430624289,0.16099233,94352.0,94333.0,0.0798]
[1740430624467,0.63908371,94352.0,94351.0,1e-06]
[1740430624683,0.55225269,94352.0,94351.0,1e-06]
[1740430624895,1.18418169,94352.0,94351.0,1e-06]
[1740430625100,2.02149769,94352.0,94351.0,1e-06]
[1740430625305,2.02149769,94352.0,94351.0,4.417e-05]
[1740430625510,1.80399269,94352.0,94351.0,4.417e-05]
[1740430625714,1.028991,94352.0,94351.0,4.417e-05]
[1740430625921,0.358675,94352.0,94351.0,4.417e-05]
[1740430626128,0.365675,94352.0,94351.0,0.00104417]
[1740430626964,0.358675,94352.0,94351.0,4.417e-05]
[1740430627209,0.361675,94352.0,94351.0,4.417e-05]
[1740430627375,0.207696,94352.0,94351.0,4.417e-05]
[1740430627798,0.052696,94352.0,94351.0,4.417e-05]
[1740430628024,0.020828,94352.0,94351.0,4.417e-05]
[1740430628219,0.024828,94352.0,94351.0,4.417e-05]
[1740430628553,0.017828,94352.0,94351.0,4.417e-05]
[1740430628760,0.180807,94352.0,94351.0,4.417e-05]
[1740430628983,0.181807,94352.0,94351.0,4.417e-05]
[1740430629401,0.177807,94352.0,94351.0,4.417e-05]
[1740430630128,0.018828,94352.0,94351.0,4.417e-05]
[1740430630555,0.020828,94352.0,94351.0,4.417e-05]
[1740430631116,0.179807,94352.0,94351.0,4.417e-05]
[1740430631450,0.179807,94352.0,94351.0,0.00089377]
[1740430632477,0.020828,94352.0,94351.0,0.00089377]
[1740430633082,0.179807,94352.0,94351.0,0.00089377]
[1740430634646,0.020828,94352.0,94351.0,0.00089377]
[1740430635665,0.179807,94352.0,94351.0,0.00089377]
[1740430636046,0.020828,94352.0,94351.0,0.00089377]
[1740430636249,0.179807,94352.0,94351.0,0.00089377]
[1740430639159,0.159004,94337.0,94336.0,0.0008509]
[1740430639391,0.159004,94337.0,94336.0,0.00089407]
[1740430639591,0.00208856,94337.0,94336.0,0.00089407]
[1740430639933,0.158997,94341.0,94336.0,0.00089407]
[1740430640064,0.21199,94344.0,94336.0,0.00089407]
[1740430640264,0.158999,94340.0,94336.0,0.00089407]
[1740430640464,0.00208888,94339.0,94336.0,0.00089407]
[1740430641170,0.159003,94338.0,94336.0,0.00489407]
[1740430641458,0.16109172,94338.0,94336.0,0.00089407]
[1740430641653,0.00208872,94338.0,94336.0,0.00389407]
[1740430641860,0.159001,94339.0,94336.0,0.00089407]
[1740430642065,1.05620423,94346.0,94336.0,0.00089407]
[1740430642326,1.05620423,94346.0,94336.0,0.00189407]
[1740430642327,0.159004,94337.0,94336.0,0.00189407]
[1740430642712,0.00225673,94337.0,94322.0,0.0829]
[1740430642940,0.21201,94335.0,94322.0,0.08302957]
[1740430643072,0.159028,94323.0,94322.0,0.08302957]
[1740430643276,0.159028,94323.0,94311.0,0.0004]
[1740430643277,0.159046,94312.0,94311.0,0.0004]
[1740430643477,0.159046,94312.0,94311.0,0.00047761]
[1740430643478,1.23103043,94312.0,94311.0,0.00047761]
[1740430643691,1.17732767,94312.0,94276.0,0.0808]
[1740430643873,0.159065,94301.0,94300.0,0.00011791]
[1740430644078,0.16151236,94301.0,94300.0,0.00011791]
[1740430645336,0.16483295,94301.0,94300.0,0.00011791]
[1740430645505,0.16483295,94301.0,94300.0,0.00211791]
[1740430646331,0.16483295,94301.0,94300.0,0.00011791]
[1740430646860,0.31483295,94301.0,94300.0,0.00011791]
[1740430647416,1.37203718,94301.0,94300.0,0.00011791]
[1740430647830,1.37103718,94301.0,94300.0,0.00011791]
[1740430648661,1.37503718,94301.0,94300.0,0.00011791]
[1740430648979,1.38003718,94301.0,94300.0,0.00011791]
[1740430649400,1.37603718,94301.0,94300.0,0.00011791]
[1740430649597,1.37103718,94301.0,94300.0,0.00011791]
[1740430649871,1.48268287,94301.0,94300.0,0.00011791]
[1740430650663,1.47936228,94301.0,94300.0,0.00011791]
[1740430650870,1.37671659,94301.0,94300.0,0.00011791]
[1740430652675,1.22671659,94301.0,94300.0,0.00011791]
[1740430654483,1.22671659,94301.0,94300.0,0.00096791]
[1740430656054,1.24083459,94301.0,94300.0,0.00096791]
[1740430662528,1.22671659,94301.0,94300.0,0.00096791]
[1740430669237,1.85149328,94301.0,94300.0,9.1e-07]
[1740430669354,1.55726228,94301.0,94300.0,9.1e-07]
[1740430670207,1.55226228,94301.0,94300.0,9.1e-07]
[1740430670410,1.55926228,94301.0,94300.0,9.1e-07]
[1740430671215,1.55526228,94301.0,94300.0,9.1e-07]
[1740430671594,1.39619728,94301.0,94288.0,7e-05]
[1740430671790,0.309081,94291.0,94290.0,0.0142477]
[1740430672019,1.46793092,94291.0,94290.0,0.0142477]
[1740430672219,1.47034869,94291.0,94290.0,0.0142477]
[1740430672448,1.47034869,94291.0,94282.0,0.0008498]
[1740430672449,0.0786,94282.0,94268.0,5e-07]
[1740430672670,0.309119,94269.0,94268.0,5e-07]
[1740430672872,1.36532323,94269.0,94268.0,5e-07]
[1740430673302,1.36773328,94269.0,94268.0,5e-07]
[1740430673512,1.38239808,94269.0,94268.0,5e-07]
[1740430673844,1.58768946,94269.0,94268.0,5e-07]
[1740430674046,1.48504377,94269.0,94268.0,5e-07]
[1740430674745,1.38239808,94269.0,94268.0,5e-07]
[1740430675089,1.39819808,94269.0,94268.0,5e-07]
[1740430675674,1.40519808,94269.0,94268.0,5e-07]
[1740430676030,1.50184377,94269.0,94268.0,5e-07]
[1740430676308,1.59748946,94269.0,94268.0,5e-07]
[1740430676509,1.60148946,94269.0,94268.0,5e-07]
[1740430676922,1.48504377,94269.0,94268.0,5e-07]
[1740430677129,1.50184377,94269.0,94268.0,5e-07]
[1740430678167,1.50484377,94269.0,94268.0,5e-07]
[1740430678611,1.49484377,94269.0,94268.0,5e-07]
[1740430678820,1.50584377,94269.0,94268.0,5e-07]
[1740430679226,1.49884377,94269.0,94268.0,5e-07]
[1740430679587,1.50484377,94269.0,94268.0,5e-07]
[1740430680130,1.50243372,94269.0,94268.0,5e-07]
[1740430680304,1.50482571,94269.0,94268.0,5e-07]
[1740430680914,1.49502571,94269.0,94268.0,5e-07]
[1740430681110,0.01239199,94269.0,94268.0,0.1591205]
[1740430681482,0.01,94269.0,94268.0,0.1591205]
[1740430681687,0.01,94269.0,94268.0,5e-07]
[1740430681894,0.159119,94269.0,94268.0,5e-07]
[1740430682092,0.19863411,94269.0,94268.0,5e-07]
[1740430682300,0.20863411,94269.0,94268.0,5e-07]
[1740430682511,0.17150661,94269.0,94268.0,5e-07]
[1740430682711,0.31150661,94269.0,94268.0,5e-07]
[1740430682920,0.31250661,94269.0,94268.0,5e-07]
[1740430683584,0.31150661,94269.0,94268.0,5e-07]
[1740430684445,0.31650661,94269.0,94268.0,5e-07]
[1740430684852,0.31850661,94269.0,94268.0,5e-07]
[1740430685053,0.32050661,94269.0,94268.0,5e-07]
[1740430685283,0.07273083,94269.0,94268.0,5e-07]
[1740430685486,0.16140167,94269.0,94268.0,5e-07]
[1740430685698,0.16940167,94269.0,94268.0,5e-07]
[1740430686107,0.16440167,94269.0,94268.0,5e-07]
[1740430686514,0.16540167,94269.0,94268.0,5e-07]
[1740430686921,1.2216059,94269.0,94268.0,5e-07]
[1740430687875,1.22165659,94269.0,94268.0,5e-07]
[1740430688299,1.22365659,94269.0,94268.0,5e-07]
[1740430688893,1.21965659,94269.0,94268.0,5e-07]
[1740430689138,1.32030228,94269.0,94268.0,5e-07]
[1740430689310,1.47330228,94269.0,94268.0,5e-07]
[1740430689715,1.47030228,94269.0,94268.0,5e-07]
[1740430689949,1.47130228,94269.0,94268.0,5e-07]
[1740430690154,1.70982228,94269.0,94268.0,5e-07]
[1740430690363,1.82800882,94269.0,94268.0,5e-07]
[1740430690988,1.82970942,94269.0,94268.0,5e-07]
[1740430691420,0.309139,94257.0,94256.0,5e-07]
[1740430691623,1.49232977,94257.0,94256.0,5e-07]
[1740430691856,1.59725399,94257.0,94256.0,5e-07]
[1740430692268,1.58745399,94257.0,94256.0,5e-07]
[1740430692478,1.59725399,94257.0,94256.0,5e-07]
[1740430692687,1.53364111,94257.0,94256.0,5e-07]
[1740430692892,1.50230026,94257.0,94256.0,5e-07]
[1740430693117,1.48723626,94257.0,94256.0,5e-07]
[1740430693327,1.49423626,94257.0,94256.0,5e-07]
[1740430694568,1.48723626,94257.0,94256.0,5e-07]
[1740430694773,1.48623626,94257.0,94256.0,5e-07]
[1740430694982,1.49323626,94257.0,94256.0,5e-07]
[1740430695188,1.48723626,94257.0,94256.0,5e-07]
[1740430695395,1.49023626,94257.0,94256.0,5e-07]
[1740430695595,1.48323626,94257.0,94256.0,5e-07]
[1740430695795,1.48423626,94257.0,94256.0,5e-07]
[1740430695932,1.48623626,94257.0,94256.0,5e-07]
[1740430696539,1.47639626,94257.0,94256.0,5e-07]
[1740430696911,0.00840734,94257.0,94256.0,0.0827005]
[1740430697125,0.00612881,94257.0,94256.0,0.0827005]
[1740430697655,0.16729402,94257.0,94256.0,0.0827005]
[1740430697858,0.16129402,94257.0,94256.0,0.0827005]
[1740430698079,0.16429402,94257.0,94256.0,0.0827005]
[1740430699294,0.16429402,94257.0,94241.0,0.0008495]
[1740430699295,0.159164,94242.0,94241.0,0.0489495]
[1740430699499,0.159169,94239.0,94238.0,0.0807]
[1740430699859,0.16106672,94239.0,94238.0,0.0807]
[1740430700160,0.159184,94230.0,94229.0,0.1282]
[1740430700499,0.16108003,94230.0,94229.0,0.1282]
[1740430700725,0.159211,94215.0,94207.0,0.123]
[1740430700915,0.00188448,94214.0,94207.0,0.123]
[1740430701112,0.15,94243.0,94207.0,0.123]
[1740430701313,0.15,94240.0,94207.0,0.123]
[1740430701539,0.212271,94220.0,94207.0,0.123]
[1740430701786,0.212248,94229.0,94207.0,0.123]
[1740430701942,0.001,94215.0,94207.0,0.12343255]
[1740430702145,0.00288448,94214.0,94207.0,0.12343255]
[1740430702321,0.159183,94231.0,94207.0,0.12343255]
[1740430702521,0.212261,94224.0,94207.0,0.12343255]
[1740430702789,0.00188617,94223.0,94208.0,0.00148595]
[1740430703063,0.00188617,94223.0,94209.0,0.212293]
[1740430703359,1.05620423,94233.0,94210.0,0.10264569]
[1740430703560,1.05620423,94233.0,94213.0,0.212284]
[1740430703760,0.00188785,94232.0,94210.0,0.10264569]
[1740430704158,0.159184,94231.0,94214.0,0.212282]
[1740430704394,0.16106885,94232.0,94227.0,0.15919]
[1740430704618,0.16106885,94232.0,94210.0,0.10264569]
[1740430704619,0.00188748,94230.0,94226.0,0.159191]
[1740430704926,0.00188729,94229.0,94225.0,0.159193]
[1740430705054,0.001,94232.0,94226.0,0.159191]
[1740430705259,0.00188767,94231.0,94198.0,0.212316]
[1740430705463,0.15919,94227.0,94217.0,0.159205]
[1740430705893,0.16107973,94226.0,94216.0,0.159208]
[1740430706845,0.159198,94222.0,94215.0,0.159209]
[1740430707235,0.00188156,94221.0,94215.0,0.159209]
[1740430707379,0.00188156,94221.0,94217.0,0.159206]
[1740430707753,0.159199,94222.0,94198.0,0.212316]
[1740430707978,0.00188137,94220.0,94216.0,0.159207]
[1740430708190,0.16108156,94221.0,94216.0,0.002]
[1740430708366,0.00188118,94219.0,94216.0,0.002]
[1740430708567,0.00188137,94220.0,94214.0,0.159211]
[1740430708764,0.00188099,94218.0,94214.0,0.159211]
[1740430708988,0.00188118,94219.0,94215.0,0.159209]
[1740430709206,0.00188081,94217.0,94209.0,0.212292]
[1740430709364,0.159196,94224.0,94215.0,0.15921]
[1740430709591,0.159197,94223.0,94215.0,0.15921]
[1740430709761,0.16107893,94223.0,94215.0,0.15921]
[1740430710172,0.00188193,94223.0,94209.0,0.212293]
[1740430710383,0.00188193,94223.0,94207.0,0.33572955]
[1740430710638,0.00188193,94223.0,94215.0,0.001]
[1740430710899,0.16107993,94223.0,94215.0,0.001]
[1740430711076,0.1592,94221.0,94207.0,0.12343255]
[1740430711281,0.00188137,94220.0,94207.0,0.12343255]
[1740430711477,0.159199,94222.0,94213.0,0.159212]
[1740430711686,0.00188156,94221.0,94213.0,0.159212]
[1740430712001,0.00188156,94221.0,94214.0,0.159211]
[1740430712232,0.00188156,94221.0,94215.0,0.159209]
[1740430712349,0.159196,94223.0,94216.0,0.159207]
[1740430712552,0.00188174,94222.0,94216.0,0.159207]
[1740430712916,0.16107974,94222.0,94208.0,0.159222]
[1740430713089,0.00188174,94222.0,94207.0,0.12443255]
[1740430713457,0.16108074,94222.0,94214.0,0.15921]
[1740430713665,0.00188174,94222.0,94207.0,0.12343255]
[1740430714043,0.00188174,94222.0,94207.0,0.12443255]
[1740430714225,0.00188174,94222.0,94210.0,0.212291]
[1740430714423,0.00188174,94222.0,94214.0,0.0008507]
[1740430714626,0.00188174,94222.0,94215.0,0.15921]
[1740430715043,0.00188174,94222.0,94214.0,0.0008507]
[1740430715258,0.00188174,94222.0,94221.0,0.1592]
[1740430715479,0.0017014,94225.0,94216.0,0.0795]
[1740430715691,0.0017014,94225.0,94217.0,0.10264569]
[1740430715911,0.15921,94215.0,94214.0,0.0018507]
[1740430716116,1.05790563,94225.0,94214.0,0.0018507]
[1740430716522,0.16107285,94224.0,94214.0,0.0018507]
[1740430716741,0.16107285,94224.0,94214.0,0.0008507]
[1740430716957,0.159196,94223.0,94214.0,0.0008507]
[1740430717165,0.159196,94223.0,94221.0,0.001]
[1740430717368,0.00187747,94222.0,94221.0,0.001]
[1740430717574,0.00187747,94222.0,94214.0,0.0008507]
[1740430717773,0.159195,94224.0,94214.0,0.0008507]
[1740430717774,0.160195,94224.0,94214.0,0.0008507]
[1740430717910,0.00187729,94221.0,94214.0,0.0008507]
[1740430718132,1.05790563,94225.0,94214.0,0.0008507]
[1740430718349,0.00187785,94224.0,94214.0,0.0008507]
[1740430718763,0.16107385,94224.0,94214.0,0.0008507]
[1740430719643,0.00187785,94224.0,94214.0,0.0008507]
[1740430720957,0.00287785,94224.0,94216.0,0.159208]
[1740430721189,0.00187766,94223.0,94216.0,0.159208]
[1740430721360,0.00187766,94223.0,94215.0,0.15921]
[1740430721515,0.0017014,94225.0,94220.0,0.159201]
[1740430721723,0.00287785,94224.0,94222.0,0.159197]
[1740430721917,0.001,94224.0,94222.0,0.159197]
[1740430722327,0.001,94224.0,94214.0,0.0008507]
[1740430722524,0.001,94224.0,94214.0,0.10349639]
[1740430722748,0.001,94224.0,94221.0,0.159199]
[1740430722943,0.0017014,94225.0,94214.0,0.10349639]
[1740430722944,0.0017014,94225.0,94217.0,0.212275]
[1740430723184,0.0017014,94225.0,94224.0,0.240095]
[1740430723382,0.0017014,94225.0,94224.0,0.34274069]
[1740430723586,0.0017014,94225.0,94224.0,0.35740217]
[1740430724545,0.0017014,94225.0,94224.0,0.57084302]
[1740430724781,0.0017014,94225.0,94224.0,0.55630217]
[1740430724982,0.0017014,94225.0,94224.0,0.55730217]
[1740430725940,0.0017014,94225.0,94224.0,0.23344569]
[1740430726373,0.00175209,94225.0,94224.0,0.39264069]
[1740430726785,0.00175209,94225.0,94224.0,0.40742614]
[1740430727187,0.00175209,94225.0,94224.0,0.39264069]
[1740430727602,0.00175209,94225.0,94224.0,0.39164069]
[1740430727810,0.00275209,94225.0,94224.0,0.39264069]
[1740430728136,0.00175209,94225.0,94224.0,0.39264069]
[1740430728465,0.00275209,94225.0,94224.0,0.39264069]
[1740430729416,0.00275209,94225.0,94224.0,0.39164069]
[1740430729669,0.00375209,94225.0,94224.0,0.39264069]
[1740430730047,0.00375209,94225.0,94224.0,0.39164069]
[1740430730256,0.00275209,94225.0,94224.0,0.39164069]
[1740430730449,0.00275209,94225.0,94224.0,0.23244569]
[1740430730629,0.00275209,94225.0,94224.0,0.39164069]
[1740430730817,0.00375209,94225.0,94224.0,0.39264069]
[1740430733179,0.00375209,94225.0,94224.0,0.40718154]
[1740430733306,0.00375209,94225.0,94224.0,0.55718154]
[1740430737135,0.00275209,94225.0,94224.0,0.55618154]
[1740430737332,0.00275209,94225.0,94224.0,0.55703224]
[1740430737541,0.00275209,94225.0,94224.0,0.55803224]
[1740430738103,0.00375209,94225.0,94224.0,0.55803224]
[1740430742962,0.00045309,94257.0,94225.0,0.15]
[1740430743160,0.0791,94255.0,94224.0,0.1316507]
[1740430743362,0.159171,94238.0,94224.0,0.23429639]
[1740430743581,0.00171201,94237.0,94224.0,0.10449639]
[1740430743820,0.212233,94236.0,94224.0,0.10349639]
[1740430743952,1.05620423,94242.0,94224.0,0.0058507]
[1740430744139,0.00171275,94241.0,94225.0,0.001]
[1740430744346,0.159174,94237.0,94225.0,0.001]
[1740430744548,0.00171182,94236.0,94224.0,0.0008507]
[1740430744914,0.159185,94230.0,94224.0,0.0008507]
[1740430745058,0.159186,94230.0,94224.0,0.0008507]
[1740430745263,0.00171051,94229.0,94224.0,0.0008507]
[1740430745672,0.159193,94225.0,94224.0,0.0008507]
[1740430745875,0.00171032,94228.0,94224.0,0.0008507]
[1740430746075,0.16090041,94225.0,94224.0,0.0008507]
[1740430746286,0.159193,94225.0,94224.0,0.0008507]
[1740430746487,0.16089488,94225.0,94224.0,0.0008507]
[1740430746871,0.16089488,94225.0,94224.0,0.0018507]
[1740430747331,0.16089488,94225.0,94224.0,0.0008507]
[1740430748776,0.16289488,94225.0,94224.0,0.0008507]
[1740430749631,0.00470188,94225.0,94224.0,0.0008507]
[1740430749809,0.16389488,94225.0,94224.0,0.0008507]
[1740430750110,0.16089488,94225.0,94224.0,0.0008507]
[1740430750330,0.00270188,94225.0,94224.0,0.0008507]
[1740430751129,1.05620423,94232.0,94224.0,0.0008507]
[1740430751343,0.00169814,94231.0,94224.0,0.0008507]
[1740430751547,0.159193,94225.0,94224.0,0.0008507]
[1740430751685,0.16089002,94225.0,94224.0,0.0008507]
[1740430752290,0.00169702,94225.0,94224.0,0.0008507]
[1740430752491,0.159189,94228.0,94224.0,0.0008507]
[1740430752734,0.00169739,94227.0,94224.0,0.0008507]
[1740430752936,0.159185,94230.0,94224.0,0.0018507]
[1740430753133,1.26844623,94232.0,94224.0,0.0018507]
[1740430753134,0.00169776,94229.0,94224.0,0.0018507]
[1740430753389,1.05620423,94232.0,94224.0,0.0018507]
[1740430753538,0.001,94225.0,94224.0,0.0018507]
[1740430753739,0.001,94225.0,94224.0,0.0008507]
[1740430754145,0.00154697,94225.0,94224.0,0.0008507]
[1740430754347,0.001,94229.0,94224.0,0.0008507]
[1740430754547,0.00154748,94228.0,94224.0,0.0018507]
[1740430755097,0.15921,94215.0,94214.0,0.0008507]
[1740430755245,1.05620423,94215.0,94205.0,0.0008501]
[1740430755446,0.159216,94212.0,94205.0,0.0008501]
[1740430755790,0.159222,94208.0,94205.0,0.0008501]
[1740430755989,0.16076841,94208.0,94205.0,0.0008501]
[1740430756916,1.23082852,94208.0,94205.0,0.0008501]
[1740430757482,1.23082852,94208.0,94207.0,0.00143255]
[1740430757670,1.23082852,94208.0,94207.0,0.00043255]
[1740430758311,1.48747421,94208.0,94207.0,0.00043255]
[1740430758542,0.15,94205.0,94201.0,6.5e-07]
[1740430758677,0.15,94205.0,94201.0,0.00013011]
[1740430758678,0.309232,94202.0,94201.0,0.00013011]
[1740430758883,0.41350897,94202.0,94201.0,0.00013011]
[1740430759881,0.42326897,94202.0,94201.0,0.00013011]
[1740430760622,0.43626897,94202.0,94201.0,0.00013011]
[1740430761057,0.42326897,94202.0,94201.0,0.00013011]
[1740430761230,0.53091466,94202.0,94201.0,0.00013011]
[1740430761429,0.30924,94197.0,94196.0,1.1e-07]
[1740430761628,1.47784992,94197.0,94196.0,1.1e-07]
[1740430761961,1.47947176,94197.0,94196.0,1.1e-07]
[1740430762166,1.46971176,94197.0,94196.0,1.1e-07]
[1740430762369,1.47947176,94197.0,94196.0,1.1e-07]
[1740430762507,1.46971176,94197.0,94196.0,1.1e-07]
[1740430762706,1.47947176,94197.0,94196.0,1.1e-07]
[1740430763407,1.59481176,94197.0,94196.0,1.1e-07]
[1740430763582,1.47947176,94197.0,94196.0,1.1e-07]
[1740430763788,1.48647176,94197.0,94196.0,1.1e-07]
[1740430763948,1.49147176,94197.0,94196.0,1.1e-07]
[1740430764153,1.47947176,94197.0,94196.0,1.1e-07]
[1740430764348,1.48647176,94197.0,94196.0,1.1e-07]
[1740430764553,1.51685334,94197.0,94196.0,1.1e-07]
[1740430764767,1.50985334,94197.0,94196.0,1.1e-07]
[1740430765075,1.51585334,94197.0,94196.0,1.1e-07]
[1740430765272,1.48271176,94197.0,94196.0,1.1e-07]
[1740430765608,1.32571176,94197.0,94196.0,1.1e-07]
[1740430766159,1.33271176,94197.0,94196.0,1.1e-07]
[1740430766372,0.00862184,94197.0,94196.0,1.1e-07]
[1740430766543,0.00162184,94197.0,94196.0,1.1e-07]
[1740430766748,0.011,94197.0,94196.0,1.1e-07]
[1740430766946,0.16570521,94197.0,94196.0,1.1e-07]
[1740430767177,0.16770521,94197.0,94196.0,1.1e-07]
[1740430767307,0.16270521,94197.0,94196.0,1.1e-07]
[1740430767518,0.16670521,94197.0,94196.0,1.1e-07]
[1740430767721,0.2693509,94197.0,94196.0,1.1e-07]
[1740430768315,0.2791109,94197.0,94196.0,1.1e-07]
[1740430768844,0.2802109,94197.0,94196.0,1.1e-07]
[1740430769195,0.00856521,94197.0,94196.0,1.1e-07]
[1740430769513,0.0071,94197.0,94196.0,1.1e-07]
[1740430770099,0.00856713,94197.0,94196.0,1.1e-07]
[1740430770309,0.00856713,94197.0,94196.0,0.15924211]
[1740430770509,0.00856713,94197.0,94196.0,0.20714211]
[1740430770510,0.0031,94197.0,94196.0,0.20714211]
[1740430770867,0.0031,94197.0,94196.0,0.3097878]
[1740430771070,0.16034,94197.0,94196.0,0.04790011]
[1740430771276,0.0011,94197.0,94196.0,0.04790011]
[1740430771480,0.159216,94212.0,94197.0,0.21232]
[1740430771876,0.22129912,94227.0,94200.0,0.212312]
[1740430771877,0.00140311,94211.0,94200.0,0.212312]
[1740430772152,0.00140311,94211.0,94201.0,0.10264569]
[1740430772399,0.15,94226.0,94196.0,0.04790011]
[1740430772659,0.001,94212.0,94197.0,0.10264569]
[1740430773113,0.0017016,94214.0,94209.0,0.159219]
[1740430773382,0.0017016,94214.0,94197.0,0.10264569]
[1740430773621,0.0017016,94214.0,94205.0,0.159225]
[1740430773809,0.0017016,94214.0,94203.0,0.212306]
[1740430774094,0.00140517,94213.0,94197.0,0.10264569]
[1740430774563,0.00140517,94213.0,94196.0,0.04875091]
[1740430774564,0.15924,94197.0,94196.0,0.04875091]
[1740430774805,0.15924,94197.0,94196.0,0.00085091]
[1740430775050,0.1606365,94197.0,94196.0,0.00085091]
[1740430775544,0.27702909,94197.0,94196.0,0.00085091]
[1740430777241,0.1743834,94197.0,94196.0,0.00085091]